[Event "Late-Titled-Tuesday-Blitz-February-20-2024"]
[Site "Chess.com"]
[Date "2024.02.20"]
[Round "5"]
[White "CarlosjPineror"]
[Black "Sanan_Sjugirov"]
[Result "0-1"]
[WhiteElo "2568"]
[BlackElo "2870"]
[TimeControl "180+1"]
[EndTime "14:56:02 PST"]
[Termination "Sanan_Sjugirov won by resignation"]

1. e4 {[%clk 0:03:00.9]} 1... c5 {[%clk 0:02:57.8]} 2. Nf3 {[%clk 0:03:00.6]}
2... Nc6 {[%clk 0:02:58.4]} 3. g3 {[%clk 0:03:00.8]} 3... d6 {[%clk 0:02:57]} 4.
Bg2 {[%clk 0:03:00.8]} 4... Nf6 {[%clk 0:02:57.1]} 5. Qe2 {[%clk 0:02:58.2]}
5... e5 {[%clk 0:02:54.6]} 6. c3 {[%clk 0:02:57.2]} 6... Be7 {[%clk 0:02:55]} 7.
O-O {[%clk 0:02:57]} 7... O-O {[%clk 0:02:55.5]} 8. d4 {[%clk 0:02:52.1]} 8...
cxd4 {[%clk 0:02:55.3]} 9. cxd4 {[%clk 0:02:52.3]} 9... exd4 {[%clk 0:02:56.2]}
10. Rd1 {[%clk 0:02:51.4]} 10... Re8 {[%clk 0:02:51.5]} 11. Nxd4 {[%clk
0:02:50]} 11... Bg4 {[%clk 0:02:50.4]} 12. f3 {[%clk 0:02:48]} 12... Nxd4 {[%clk
0:02:50.4]} 13. Rxd4 {[%clk 0:02:48.6]} 13... Be6 {[%clk 0:02:48.1]} 14. Be3
{[%clk 0:02:45.3]} 14... d5 {[%clk 0:02:47.6]} 15. e5 {[%clk 0:02:44.7]} 15...
Nd7 {[%clk 0:02:47.1]} 16. f4 {[%clk 0:02:44.1]} 16... Bc5 {[%clk 0:02:43.3]}
17. Rd2 {[%clk 0:02:35.2]} 17... Qb6 {[%clk 0:02:43]} 18. Bxc5 {[%clk
0:02:34.4]} 18... Nxc5 {[%clk 0:02:43.9]} 19. Qf2 {[%clk 0:02:29.2]} 19... d4
{[%clk 0:02:42.5]} 20. Na3 {[%clk 0:02:18.9]} 20... Rad8 {[%clk 0:02:39.8]} 21.
h3 {[%clk 0:02:05.9]} 21... d3 {[%clk 0:02:34.7]} 22. Kh2 {[%clk 0:02:03.6]}
22... Bd5 {[%clk 0:02:28.3]} 23. Bxd5 {[%clk 0:01:44.9]} 23... Rxd5 {[%clk
0:02:29.2]} 24. Rad1 {[%clk 0:01:45.2]} 24... Red8 {[%clk 0:02:27.7]} 25. Qf3
{[%clk 0:01:31.7]} 25... Qb4 {[%clk 0:02:22.1]} 26. h4 {[%clk 0:01:22.2]} 26...
h6 {[%clk 0:02:20.1]} 27. h5 {[%clk 0:01:15.3]} 27... Qe4 {[%clk 0:02:11.5]} 28.
Qxe4 {[%clk 0:01:05.4]} 28... Nxe4 {[%clk 0:02:12.4]} 29. Rg2 {[%clk 0:01:05.7]}
29... b5 {[%clk 0:02:06.9]} 30. Nb1 {[%clk 0:01:05.5]} 30... f6 {[%clk
0:01:57.4]} 31. exf6 {[%clk 0:01:05.3]} 31... Rxh5+ {[%clk 0:01:56.8]} 32. Kg1
{[%clk 0:01:05.9]} 32... Nxf6 {[%clk 0:01:53.8]} 33. Nd2 {[%clk 0:01:06.5]}
33... Ng4 {[%clk 0:01:52.5]} 34. Nf1 {[%clk 0:01:06.5]} 34... Rhd5 {[%clk
0:01:50.7]} 35. Rgd2 {[%clk 0:01:05.5]} 35... Kf7 {[%clk 0:01:50.8]} 36. Kg2
{[%clk 0:01:05.7]} 36... h5 {[%clk 0:01:49.8]} 37. Kf3 {[%clk 0:01:06.2]} 37...
Kf6 {[%clk 0:01:48.3]} 38. Rc1 {[%clk 0:01:00.5]} 38... R8d6 {[%clk 0:01:45.9]}
39. Rc7 {[%clk 0:01:00]} 39... a6 {[%clk 0:01:45.1]} 40. b4 {[%clk 0:00:55.7]}
40... g5 {[%clk 0:01:44.6]} 41. Rc3 {[%clk 0:00:51.9]} 41... gxf4 {[%clk
0:01:44.5]} 42. gxf4 {[%clk 0:00:52.8]} 42... Kg6 {[%clk 0:01:37.6]} 43. Ng3
{[%clk 0:00:47.6]} 43... Nf6 {[%clk 0:01:32.5]} 44. a3 {[%clk 0:00:41.9]} 44...
h4 {[%clk 0:01:32.2]} 45. Nf1 {[%clk 0:00:32.1]} 45... Rd4 {[%clk 0:01:30]} 46.
Ne3 {[%clk 0:00:28]} 46... h3 {[%clk 0:01:24.3]} 47. Rc1 {[%clk 0:00:25.3]}
47... Ne4 {[%clk 0:01:18.4]} 48. Rg1+ {[%clk 0:00:25.5]} 48... Kf6 {[%clk
0:01:19.1]} 49. Rh2 {[%clk 0:00:24.1]} 49... Rd8 {[%clk 0:00:52.4]} 50. Rxh3
{[%clk 0:00:23]} 50... Nd2+ {[%clk 0:00:52.8]} 51. Kg2 {[%clk 0:00:19]} 51...
Rxf4 {[%clk 0:00:43.6]} 52. Rd1 {[%clk 0:00:18.9]} 52... Ne4 {[%clk 0:00:41.8]}
53. Rh6+ {[%clk 0:00:14.5]} 53... Ke5 {[%clk 0:00:38.7]} 54. Rh5+ {[%clk
0:00:14.4]} 54... Kd4 {[%clk 0:00:37.8]} 55. Nf5+ {[%clk 0:00:12.8]} 55... Kc3
{[%clk 0:00:36.7]} 56. Ne3 {[%clk 0:00:09.7]} 56... Rg8+ {[%clk 0:00:34.9]} 57.
Kh2 {[%clk 0:00:10]} 57... Rf2+ {[%clk 0:00:34.9]} 58. Kh1 {[%clk 0:00:10.3]}
58... Ng3+ {[%clk 0:00:34.9]} 0-1

[Event "Late-Titled-Tuesday-Blitz-February-20-2024"]
[Site "Chess.com"]
[Date "2024.02.20"]
[Round "5"]
[White "penguingm1"]
[Black "DonJuan_34"]
[Result "0-1"]
[WhiteElo "2819"]
[BlackElo "2483"]
[TimeControl "180+1"]
[EndTime "14:56:02 PST"]
[Termination "DonJuan_34 won by resignation"]

1. f4 {[%clk 0:03:00.9]} 1... Nf6 {[%clk 0:02:59.4]} 2. Nf3 {[%clk 0:03:01]}
2... g6 {[%clk 0:02:59.2]} 3. b3 {[%clk 0:03:01.2]} 3... Bg7 {[%clk 0:02:59.4]}
4. Bb2 {[%clk 0:03:01.9]} 4... O-O {[%clk 0:02:59.5]} 5. c4 {[%clk 0:02:58]}
5... d6 {[%clk 0:02:59.6]} 6. e3 {[%clk 0:02:58.3]} 6... Nbd7 {[%clk 0:02:54]}
7. Nc3 {[%clk 0:02:58.2]} 7... c6 {[%clk 0:02:50.6]} 8. Bd3 {[%clk 0:02:54.1]}
8... e5 {[%clk 0:02:48.9]} 9. O-O {[%clk 0:02:44.1]} 9... exf4 {[%clk
0:02:28.6]} 10. exf4 {[%clk 0:02:45]} 10... d5 {[%clk 0:02:20.9]} 11. Bc2 {[%clk
0:02:41.6]} 11... dxc4 {[%clk 0:01:56.2]} 12. Ba3 {[%clk 0:02:33.7]} 12... Re8
{[%clk 0:01:44.4]} 13. bxc4 {[%clk 0:02:33.7]} 13... Nb6 {[%clk 0:01:43.8]} 14.
Bb3 {[%clk 0:02:30.1]} 14... Be6 {[%clk 0:01:41.6]} 15. d3 {[%clk 0:01:40.5]}
15... Ng4 {[%clk 0:01:40.7]} 16. Qd2 {[%clk 0:01:31.3]} 16... Nxc4 {[%clk
0:01:22.4]} 17. Bxc4 {[%clk 0:01:26.1]} 17... Bxc4 {[%clk 0:01:21.4]} 18. Rad1
{[%clk 0:01:26.5]} 18... Be6 {[%clk 0:01:13.1]} 19. d4 {[%clk 0:01:24.3]} 19...
Bd5 {[%clk 0:00:57.5]} 20. Ne5 {[%clk 0:01:22.5]} 20... Nxe5 {[%clk 0:00:51.3]}
21. fxe5 {[%clk 0:01:21.9]} 21... f6 {[%clk 0:00:49.6]} 22. Nxd5 {[%clk
0:01:13.7]} 22... cxd5 {[%clk 0:00:49.6]} 23. Bd6 {[%clk 0:01:14.4]} 23... fxe5
{[%clk 0:00:44.6]} 24. dxe5 {[%clk 0:01:14.5]} 24... Qb6+ {[%clk 0:00:37.3]} 25.
Kh1 {[%clk 0:01:14.6]} 25... d4 {[%clk 0:00:36.5]} 26. Qf4 {[%clk 0:01:11.6]}
26... Rad8 {[%clk 0:00:23.2]} 27. Qf7+ {[%clk 0:00:51.7]} 27... Kh8 {[%clk
0:00:23.1]} 28. Be7 {[%clk 0:00:52.4]} 28... Rc8 {[%clk 0:00:18.1]} 29. Bf6
{[%clk 0:00:39.4]} 29... Bxf6 {[%clk 0:00:17.3]} 30. exf6 {[%clk 0:00:39.7]}
30... Qc7 {[%clk 0:00:16.6]} 31. Qd5 {[%clk 0:00:35]} 31... Rcd8 {[%clk
0:00:15.5]} 32. f7 {[%clk 0:00:35.6]} 32... Rf8 {[%clk 0:00:09.1]} 33. Qe6
{[%clk 0:00:36]} 33... Qd6 {[%clk 0:00:07.9]} 34. Qe4 {[%clk 0:00:31.7]} 34...
Rd7 {[%clk 0:00:06.9]} 35. Qe8 {[%clk 0:00:22]} 35... Kg7 {[%clk 0:00:06.9]} 36.
Qa8 {[%clk 0:00:06.7]} 36... a6 {[%clk 0:00:06.3]} 37. Qa7 {[%clk 0:00:04.8]}
37... Rdxf7 {[%clk 0:00:05.9]} 38. Rxf7+ {[%clk 0:00:04.4]} 38... Rxf7 {[%clk
0:00:06.2]} 39. h3 {[%clk 0:00:02.6]} 39... Rd7 {[%clk 0:00:06.1]} 40. Qa8
{[%clk 0:00:02.5]} 40... d3 {[%clk 0:00:05.6]} 41. Qe8 {[%clk 0:00:02.8]} 41...
Re7 {[%clk 0:00:03.9]} 42. Qa4 {[%clk 0:00:02]} 42... d2 {[%clk 0:00:03.8]} 43.
Qc2 {[%clk 0:00:02.4]} 43... Re1+ {[%clk 0:00:03.6]} 0-1

[Event "Late-Titled-Tuesday-Blitz-February-20-2024"]
[Site "Chess.com"]
[Date "2024.02.20"]
[Round "5"]
[White "adiosabu"]
[Black "Kopytkin"]
[Result "1-0"]
[WhiteElo "2567"]
[BlackElo "2394"]
[TimeControl "180+1"]
[EndTime "14:56:05 PST"]
[Termination "adiosabu won on time"]

1. e4 {[%clk 0:03:00.9]} 1... Nf6 {[%clk 0:02:59.3]} 2. e5 {[%clk 0:02:57.6]}
2... Nd5 {[%clk 0:02:59.2]} 3. d4 {[%clk 0:02:57.5]} 3... d6 {[%clk 0:02:59.6]}
4. c4 {[%clk 0:02:55.6]} 4... Nb6 {[%clk 0:02:59.5]} 5. exd6 {[%clk 0:02:56.2]}
5... cxd6 {[%clk 0:03:00.4]} 6. Be3 {[%clk 0:02:52.4]} 6... g6 {[%clk
0:03:00.7]} 7. Nc3 {[%clk 0:02:51.8]} 7... Bg7 {[%clk 0:02:26.9]} 8. Rc1 {[%clk
0:02:51.2]} 8... O-O {[%clk 0:02:01.5]} 9. b3 {[%clk 0:02:50]} 9... Bf5 {[%clk
0:01:59.3]} 10. Be2 {[%clk 0:02:43.3]} 10... d5 {[%clk 0:01:54.7]} 11. c5 {[%clk
0:02:24.2]} 11... Nc8 {[%clk 0:01:52.4]} 12. f4 {[%clk 0:02:22.9]} 12... Nc6
{[%clk 0:01:41.7]} 13. Nf3 {[%clk 0:02:21.6]} 13... Bg4 {[%clk 0:01:41.5]} 14.
Ne5 {[%clk 0:02:18.8]} 14... Bxe2 {[%clk 0:01:40.7]} 15. Qxe2 {[%clk 0:02:19.2]}
15... f6 {[%clk 0:01:32]} 16. Nxc6 {[%clk 0:02:14.4]} 16... bxc6 {[%clk
0:01:32.9]} 17. f5 {[%clk 0:02:07.8]} 17... gxf5 {[%clk 0:01:27.1]} 18. O-O
{[%clk 0:01:53.8]} 18... e6 {[%clk 0:01:13.5]} 19. Rf3 {[%clk 0:01:36.1]} 19...
Qe8 {[%clk 0:01:10]} 20. Rcf1 {[%clk 0:01:28.1]} 20... Ne7 {[%clk 0:01:07.8]}
21. Bf4 {[%clk 0:01:21.2]} 21... Ng6 {[%clk 0:00:49.6]} 22. Bd6 {[%clk
0:01:20.8]} 22... Rf7 {[%clk 0:00:49.9]} 23. Re3 {[%clk 0:01:16]} 23... e5
{[%clk 0:00:42.2]} 24. Rxf5 {[%clk 0:01:07.6]} 24... e4 {[%clk 0:00:42.1]} 25.
Rh3 {[%clk 0:01:00.2]} 25... Ne7 {[%clk 0:00:30.5]} 26. Bxe7 {[%clk 0:00:52.5]}
26... Rxe7 {[%clk 0:00:28.3]} 27. Nd1 {[%clk 0:00:52.4]} 27... e3 {[%clk
0:00:26.3]} 28. Rxe3 {[%clk 0:00:51.5]} 28... Rxe3 {[%clk 0:00:26.3]} 29. Qxe3
{[%clk 0:00:52.1]} 29... Qxe3+ {[%clk 0:00:23.5]} 30. Nxe3 {[%clk 0:00:51.6]}
30... Re8 {[%clk 0:00:24.1]} 31. Kf2 {[%clk 0:00:41]} 31... Re4 {[%clk
0:00:21.8]} 32. Nc2 {[%clk 0:00:40.9]} 32... Kf7 {[%clk 0:00:20.8]} 33. Rf3
{[%clk 0:00:30.1]} 33... Kg6 {[%clk 0:00:19.1]} 34. Rg3+ {[%clk 0:00:30]} 34...
Kf7 {[%clk 0:00:18.8]} 35. Ne3 {[%clk 0:00:22]} 35... Bh6 {[%clk 0:00:15.2]} 36.
Nf5 {[%clk 0:00:21.8]} 36... Bf4 {[%clk 0:00:14.7]} 37. Rg7+ {[%clk 0:00:19.7]}
37... Ke6 {[%clk 0:00:14]} 38. g4 {[%clk 0:00:17.9]} 38... Be3+ {[%clk
0:00:03.2]} 39. Kf3 {[%clk 0:00:16.2]} 39... Rf4+ {[%clk 0:00:03.4]} 40. Kxe3
{[%clk 0:00:16.4]} 40... Rxf5 {[%clk 0:00:02.5]} 41. gxf5+ {[%clk 0:00:16.4]}
41... Kxf5 {[%clk 0:00:03]} 42. Rc7 {[%clk 0:00:16]} 42... h5 {[%clk 0:00:03.9]}
43. Rxc6 {[%clk 0:00:16.1]} 43... a5 {[%clk 0:00:04]} 44. Rd6 {[%clk 0:00:16.4]}
44... a4 {[%clk 0:00:04.9]} 45. Rxd5+ {[%clk 0:00:16.7]} 45... Kg4 {[%clk
0:00:05.1]} 46. c6 {[%clk 0:00:16.2]} 46... f5 {[%clk 0:00:06]} 47. c7 {[%clk
0:00:16.1]} 47... f4+ {[%clk 0:00:06.9]} 48. Ke4 {[%clk 0:00:16.3]} 48... a3
{[%clk 0:00:07.8]} 49. c8=Q+ {[%clk 0:00:16.7]} 1-0

[Event "Late-Titled-Tuesday-Blitz-February-20-2024"]
[Site "Chess.com"]
[Date "2024.02.20"]
[Round "5"]
[White "dolynachess"]
[Black "SocoLoco"]
[Result "1-0"]
[WhiteElo "2447"]
[BlackElo "2202"]
[TimeControl "180+1"]
[EndTime "14:56:08 PST"]
[Termination "dolynachess won on time"]

1. d4 {[%clk 0:02:57.9]} 1... d5 {[%clk 0:02:59.6]} 2. c4 {[%clk 0:02:57.7]}
2... Nc6 {[%clk 0:03:00]} 3. Nf3 {[%clk 0:02:58.3]} 3... Bg4 {[%clk 0:02:58.5]}
4. Nbd2 {[%clk 0:02:57.1]} 4... e6 {[%clk 0:02:57.9]} 5. a3 {[%clk 0:02:56]}
5... Nf6 {[%clk 0:02:57.3]} 6. h3 {[%clk 0:02:48.8]} 6... Bh5 {[%clk 0:02:55.3]}
7. e3 {[%clk 0:02:44.8]} 7... Be7 {[%clk 0:02:46.2]} 8. Be2 {[%clk 0:02:41.6]}
8... O-O {[%clk 0:02:45.3]} 9. O-O {[%clk 0:02:41.7]} 9... Re8 {[%clk
0:02:45.7]} 10. b4 {[%clk 0:02:40.3]} 10... Ne4 {[%clk 0:02:40.1]} 11. Nxe4
{[%clk 0:02:36.6]} 11... dxe4 {[%clk 0:02:41]} 12. Nd2 {[%clk 0:02:25.7]} 12...
Bxe2 {[%clk 0:02:41.9]} 13. Qxe2 {[%clk 0:02:26.5]} 13... f5 {[%clk 0:02:41]}
14. Bb2 {[%clk 0:02:21.3]} 14... Bf6 {[%clk 0:02:40.7]} 15. b5 {[%clk
0:02:13.6]} 15... Ne7 {[%clk 0:02:35.2]} 16. a4 {[%clk 0:02:12.7]} 16... a6
{[%clk 0:02:31.3]} 17. f3 {[%clk 0:02:09.9]} 17... exf3 {[%clk 0:02:26.3]} 18.
Qxf3 {[%clk 0:02:09.4]} 18... c6 {[%clk 0:02:23.6]} 19. bxc6 {[%clk 0:01:42.9]}
19... bxc6 {[%clk 0:02:06]} 20. Ba3 {[%clk 0:01:41.9]} 20... e5 {[%clk 0:01:53]}
21. Bxe7 {[%clk 0:01:05.4]} 21... Rxe7 {[%clk 0:01:44.6]} 22. Qxf5 {[%clk
0:00:57]} 22... exd4 {[%clk 0:01:40.8]} 23. Ne4 {[%clk 0:00:57.1]} 23... dxe3
{[%clk 0:00:35.4]} 24. Nxf6+ {[%clk 0:00:45.7]} 24... gxf6 {[%clk 0:00:36.3]}
25. Qxf6 {[%clk 0:00:42.6]} 25... Rg7 {[%clk 0:00:29.1]} 26. Qxc6 {[%clk
0:00:36.7]} 26... Rc8 {[%clk 0:00:20]} 27. Qe4 {[%clk 0:00:30.3]} 27... Qe8
{[%clk 0:00:15.9]} 28. Qxe8+ {[%clk 0:00:27.1]} 28... Rxe8 {[%clk 0:00:16.8]}
29. Rae1 {[%clk 0:00:26.2]} 29... Rc7 {[%clk 0:00:14.6]} 30. Rf3 {[%clk
0:00:24.1]} 30... Rxc4 {[%clk 0:00:14.1]} 31. Rfxe3 {[%clk 0:00:22.7]} 31...
Rxe3 {[%clk 0:00:13.9]} 32. Rxe3 {[%clk 0:00:23.6]} 32... Rxa4 {[%clk
0:00:13.2]} 33. Re7 {[%clk 0:00:23.1]} 33... Ra2 {[%clk 0:00:12.3]} 34. Ra7
{[%clk 0:00:22.2]} 34... a5 {[%clk 0:00:12.4]} 35. Kh2 {[%clk 0:00:22.2]} 35...
a4 {[%clk 0:00:12.6]} 36. Kg3 {[%clk 0:00:22.7]} 36... a3 {[%clk 0:00:12.8]} 37.
Kf3 {[%clk 0:00:23.2]} 37... Ra1 {[%clk 0:00:13]} 38. Kg4 {[%clk 0:00:19.4]}
38... a2 {[%clk 0:00:12.9]} 39. Kg5 {[%clk 0:00:19.4]} 39... Kf8 {[%clk
0:00:07.7]} 40. Kh6 {[%clk 0:00:18.2]} 40... Ke8 {[%clk 0:00:07]} 41. Kxh7
{[%clk 0:00:17.8]} 41... Kd8 {[%clk 0:00:06.3]} 42. Kg6 {[%clk 0:00:17.4]} 42...
Kc8 {[%clk 0:00:06.2]} 43. Kg5 {[%clk 0:00:15]} 43... Kb8 {[%clk 0:00:06.1]} 44.
Ra3 {[%clk 0:00:14.9]} 44... Kc7 {[%clk 0:00:04.8]} 45. h4 {[%clk 0:00:15.2]}
45... Kd6 {[%clk 0:00:03.3]} 46. h5 {[%clk 0:00:15.5]} 46... Kc5 {[%clk
0:00:03.4]} 47. h6 {[%clk 0:00:15]} 47... Kb4 {[%clk 0:00:03.4]} 48. Ra8 {[%clk
0:00:15.2]} 48... Kb3 {[%clk 0:00:02.8]} 49. g4 {[%clk 0:00:14.2]} 1-0

[Event "Late-Titled-Tuesday-Blitz-February-20-2024"]
[Site "Chess.com"]
[Date "2024.02.20"]
[Round "5"]
[White "IngOscarArdila"]
[Black "ninguno46"]
[Result "0-1"]
[WhiteElo "2265"]
[BlackElo "2519"]
[TimeControl "180+1"]
[EndTime "14:56:15 PST"]
[Termination "ninguno46 won on time"]

1. d4 {[%clk 0:02:59.9]} 1... Nf6 {[%clk 0:02:56.2]} 2. c4 {[%clk 0:02:59.9]}
2... e6 {[%clk 0:02:56.2]} 3. Nc3 {[%clk 0:03:00.1]} 3... Bb4 {[%clk 0:02:56.3]}
4. Qc2 {[%clk 0:03:00.5]} 4... Nc6 {[%clk 0:02:55.2]} 5. Nf3 {[%clk 0:03:00.1]}
5... d6 {[%clk 0:02:54.5]} 6. Bg5 {[%clk 0:02:59.7]} 6... h6 {[%clk 0:02:53.7]}
7. Bxf6 {[%clk 0:02:58.6]} 7... Qxf6 {[%clk 0:02:53]} 8. e3 {[%clk 0:02:59.2]}
8... a5 {[%clk 0:02:45.7]} 9. a3 {[%clk 0:02:59.1]} 9... Bxc3+ {[%clk
0:02:45.2]} 10. Qxc3 {[%clk 0:02:59.9]} 10... O-O {[%clk 0:02:44]} 11. Be2
{[%clk 0:02:59.3]} 11... a4 {[%clk 0:02:41.1]} 12. O-O {[%clk 0:02:59.2]} 12...
e5 {[%clk 0:02:40.4]} 13. dxe5 {[%clk 0:02:54.6]} 13... dxe5 {[%clk 0:02:39.7]}
14. Rfd1 {[%clk 0:02:51.3]} 14... Bg4 {[%clk 0:02:35.6]} 15. h3 {[%clk
0:02:51.2]} 15... Bf5 {[%clk 0:02:33.3]} 16. c5 {[%clk 0:02:45.5]} 16... Rfe8
{[%clk 0:02:18.7]} 17. Rac1 {[%clk 0:02:22.6]} 17... Re7 {[%clk 0:02:08.4]} 18.
Rd2 {[%clk 0:02:07.9]} 18... Be4 {[%clk 0:02:03.6]} 19. Rcd1 {[%clk 0:02:05.3]}
19... Rae8 {[%clk 0:01:30.7]} 20. Ne1 {[%clk 0:01:57.2]} 20... Qg6 {[%clk
0:01:19.4]} 21. Bb5 {[%clk 0:01:55]} 21... Ra8 {[%clk 0:01:10.9]} 22. f3 {[%clk
0:01:48.6]} 22... Bf5 {[%clk 0:01:10.3]} 23. Kh2 {[%clk 0:01:46.4]} 23... e4
{[%clk 0:01:05.1]} 24. f4 {[%clk 0:01:43.6]} 24... h5 {[%clk 0:01:04.7]} 25.
Bxc6 {[%clk 0:01:31.9]} 25... bxc6 {[%clk 0:01:04.3]} 26. Rd8+ {[%clk
0:01:29.2]} 26... Re8 {[%clk 0:01:01.9]} 27. Rxa8 {[%clk 0:01:26.7]} 27... Rxa8
{[%clk 0:01:01.3]} 28. g3 {[%clk 0:01:14.2]} 28... Qe6 {[%clk 0:00:57.9]} 29. h4
{[%clk 0:01:08.1]} 29... Bg6 {[%clk 0:00:52.3]} 30. Qd2 {[%clk 0:00:25.6]} 30...
Rb8 {[%clk 0:00:48.8]} 31. Rc1 {[%clk 0:00:22.4]} 31... Qe7 {[%clk 0:00:41]} 32.
Rc4 {[%clk 0:00:18.6]} 32... Bf5 {[%clk 0:00:33.8]} 33. Rxa4 {[%clk 0:00:17.3]}
33... Be6 {[%clk 0:00:25.5]} 34. Rb4 {[%clk 0:00:17.2]} 34... Re8 {[%clk
0:00:22]} 35. Nc2 {[%clk 0:00:16.6]} 35... Qxc5 {[%clk 0:00:20.9]} 36. Nd4
{[%clk 0:00:13.5]} 36... Bg4 {[%clk 0:00:18.9]} 37. Qc3 {[%clk 0:00:09.8]} 37...
Qe7 {[%clk 0:00:10.1]} 38. Qxc6 {[%clk 0:00:07.5]} 38... Rd8 {[%clk 0:00:09.3]}
39. Rc4 {[%clk 0:00:06.8]} 39... Rd7 {[%clk 0:00:08.5]} 40. Qc5 {[%clk
0:00:06.3]} 40... Qf6 {[%clk 0:00:07.7]} 41. Qg5 {[%clk 0:00:05]} 41... Qb6
{[%clk 0:00:05.2]} 42. b4 {[%clk 0:00:03.7]} 42... Qa6 {[%clk 0:00:03.6]} 43.
Rc3 {[%clk 0:00:02.4]} 43... Qf1 {[%clk 0:00:03.3]} 44. f5 {[%clk 0:00:01.8]}
44... Qf2+ {[%clk 0:00:03.4]} 45. Kh1 {[%clk 0:00:02]} 45... Bf3+ {[%clk
0:00:03.6]} 46. Nxf3 {[%clk 0:00:02.2]} 46... exf3 {[%clk 0:00:04]} 47. Qd8+
{[%clk 0:00:01.9]} 47... Rxd8 {[%clk 0:00:04]} 0-1

[Event "Late-Titled-Tuesday-Blitz-February-20-2024"]
[Site "Chess.com"]
[Date "2024.02.20"]
[Round "5"]
[White "DonJuanEGenaro"]
[Black "thesupera12"]
[Result "1-0"]
[WhiteElo "2130"]
[BlackElo "2482"]
[TimeControl "180+1"]
[EndTime "14:56:17 PST"]
[Termination "DonJuanEGenaro won by checkmate"]

1. d4 {[%clk 0:02:58]} 1... g6 {[%clk 0:02:57.3]} 2. Nf3 {[%clk 0:02:57.8]} 2...
Bg7 {[%clk 0:02:58.2]} 3. Bf4 {[%clk 0:02:57.6]} 3... c5 {[%clk 0:02:58.5]} 4.
e3 {[%clk 0:02:56.8]} 4... cxd4 {[%clk 0:02:58.4]} 5. exd4 {[%clk 0:02:55.9]}
5... d6 {[%clk 0:02:58.3]} 6. h3 {[%clk 0:02:50.8]} 6... Qb6 {[%clk 0:02:58.9]}
7. b3 {[%clk 0:02:46.2]} 7... Nc6 {[%clk 0:02:56.2]} 8. c3 {[%clk 0:02:46.1]}
8... Nf6 {[%clk 0:02:54.9]} 9. Be2 {[%clk 0:02:44.5]} 9... O-O {[%clk
0:02:54.9]} 10. Nbd2 {[%clk 0:02:44.1]} 10... Nd5 {[%clk 0:02:53.1]} 11. Nc4
{[%clk 0:02:41.2]} 11... Qc7 {[%clk 0:02:51.7]} 12. Bd2 {[%clk 0:02:40.2]} 12...
e5 {[%clk 0:02:35.7]} 13. dxe5 {[%clk 0:02:26.6]} 13... dxe5 {[%clk 0:02:36.6]}
14. Qc1 {[%clk 0:02:08.8]} 14... e4 {[%clk 0:02:30.8]} 15. Nh2 {[%clk
0:01:58.7]} 15... b5 {[%clk 0:02:09.4]} 16. Ne3 {[%clk 0:01:56.3]} 16... Nxe3
{[%clk 0:02:07]} 17. Bxe3 {[%clk 0:01:38.9]} 17... b4 {[%clk 0:02:06.2]} 18. c4
{[%clk 0:01:36.1]} 18... Bc3+ {[%clk 0:02:00.9]} 19. Kf1 {[%clk 0:01:35]} 19...
Bxa1 {[%clk 0:02:00.9]} 20. Qxa1 {[%clk 0:01:33.9]} 20... Qe5 {[%clk 0:02:01.5]}
21. Qc1 {[%clk 0:01:30.1]} 21... a5 {[%clk 0:02:00.8]} 22. Ng4 {[%clk
0:01:27.6]} 22... Qd6 {[%clk 0:01:51.7]} 23. Qb2 {[%clk 0:01:19.8]} 23... f6
{[%clk 0:01:45.8]} 24. c5 {[%clk 0:01:18.8]} 24... Qe7 {[%clk 0:01:41.3]} 25.
Bc4+ {[%clk 0:01:16.2]} 25... Be6 {[%clk 0:01:41.2]} 26. Bb5 {[%clk 0:01:03.4]}
26... Rad8 {[%clk 0:01:26.9]} 27. g3 {[%clk 0:01:00.5]} 27... Rd1+ {[%clk
0:01:25.5]} 28. Kg2 {[%clk 0:01:00.5]} 28... Rxh1 {[%clk 0:01:26.4]} 29. Kxh1
{[%clk 0:01:00.7]} 29... Bxg4 {[%clk 0:01:20.6]} 30. hxg4 {[%clk 0:00:58.1]}
30... Ne5 {[%clk 0:01:21]} 31. g5 {[%clk 0:00:49.6]} 31... Qe6 {[%clk 0:01:13]}
32. Kg2 {[%clk 0:00:47.1]} 32... fxg5 {[%clk 0:00:52.6]} 33. Bxg5 {[%clk
0:00:27.5]} 33... Nd3 {[%clk 0:00:48.2]} 34. Qd4 {[%clk 0:00:18.2]} 34... Qe5
{[%clk 0:00:24.9]} 35. Bc4+ {[%clk 0:00:13.6]} 35... Kh8 {[%clk 0:00:22.6]} 36.
Be3 {[%clk 0:00:11.4]} 36... Ne1+ {[%clk 0:00:16.8]} 37. Kf1 {[%clk 0:00:09.5]}
37... Nf3 {[%clk 0:00:17.3]} 38. Qxe5+ {[%clk 0:00:07.3]} 38... Nxe5 {[%clk
0:00:18.2]} 39. Bd4 {[%clk 0:00:07.1]} 39... Re8 {[%clk 0:00:18.6]} 40. c6
{[%clk 0:00:06.9]} 40... h5 {[%clk 0:00:18.9]} 41. c7 {[%clk 0:00:07]} 41... Kh7
{[%clk 0:00:19.5]} 42. Bxe5 {[%clk 0:00:07.1]} 42... Rc8 {[%clk 0:00:18.7]} 43.
Be6 {[%clk 0:00:06.4]} 43... Rxc7 {[%clk 0:00:19.1]} 44. Bxc7 {[%clk 0:00:05.8]}
44... a4 {[%clk 0:00:20]} 45. Be5 {[%clk 0:00:05.9]} 45... g5 {[%clk 0:00:20.9]}
46. Ke2 {[%clk 0:00:04.2]} 46... Kg6 {[%clk 0:00:21.8]} 47. Ke3 {[%clk
0:00:04.2]} 47... axb3 {[%clk 0:00:21.7]} 48. axb3 {[%clk 0:00:03.4]} 48... h4
{[%clk 0:00:22.6]} 49. gxh4 {[%clk 0:00:02.9]} 49... gxh4 {[%clk 0:00:23.5]} 50.
Kxe4 {[%clk 0:00:03]} 50... h3 {[%clk 0:00:24.4]} 51. Bxh3 {[%clk 0:00:02.8]}
51... Kh5 {[%clk 0:00:24.6]} 52. Bd6 {[%clk 0:00:03.5]} 52... Kh4 {[%clk
0:00:25.5]} 53. Bxb4 {[%clk 0:00:03.6]} 53... Kh5 {[%clk 0:00:26.3]} 54. Bd6
{[%clk 0:00:04]} 54... Kg5 {[%clk 0:00:27.2]} 55. b4 {[%clk 0:00:04.4]} 55...
Kh4 {[%clk 0:00:28.1]} 56. b5 {[%clk 0:00:04.9]} 56... Kg5 {[%clk 0:00:29]} 57.
b6 {[%clk 0:00:05.5]} 57... Kf6 {[%clk 0:00:29.9]} 58. b7 {[%clk 0:00:06]} 58...
Kf7 {[%clk 0:00:30.8]} 59. b8=Q {[%clk 0:00:06.4]} 59... Kg7 {[%clk 0:00:31.7]}
60. Qf8+ {[%clk 0:00:03.5]} 60... Kg6 {[%clk 0:00:31.8]} 61. Bf5+ {[%clk
0:00:03.5]} 61... Kh5 {[%clk 0:00:32.7]} 62. Qg7 {[%clk 0:00:03.3]} 62... Kh4
{[%clk 0:00:32.2]} 63. Qg4# {[%clk 0:00:03.9]} 1-0